[Event "Seniors-LEM-50 Sachsen-Anhalt 2024"]
[Site "Magdeburg"]
[Date "2024.07.04"]
[Round "4.1"]
[White "Fabig, Holger"]
[Black "Klanten, Christoph"]
[Result "1-0"]
[ECO "B26"]
[WhiteElo "1969"]
[BlackElo "1968"]
[Annotator "NA RC"]
[PlyCount "123"]
[EventDate "2024.06.25"]
[EventType "swiss"]
[EventCountry "GER"]
[SourceTitle "playchess.com"]
[Source "ChessBase"]
[SourceQuality "1"]
[TimeControl "40/5400+30:1800+30"]

1. e4 {[%emt 0:00:20]} c5 {[%emt 0:00:08]} 2. Nc3 {[%emt 0:00:07]} Nc6 {[%emt 0:00:07]} 3. g3 {[%emt 0:00:09]} g6 {[%emt 0:00:07]} 4. Bg2 {[%emt 0:00:03]} Bg7 {[%emt 0:00:08]} 5. d3 {[%emt 0:00:06]} d6 {[%emt 0:00:06]} 6. Be3 {[%emt 0:00:24]} Rb8 {[%emt 0:00:11]} 7. Qd2 {[%emt 0:02:59]} b5 {[%emt 0:00:08]} 8. f4 {[%emt 0:00:27]} b4 $11 {[%emt 0:03:23]} 9. Nd1 {[%emt 0:00:09]} e6 {[%emt 0:03:29]} 10. Nf3 {[%emt 0:01:53]} Nd4 {[%emt 0:01:52]} 11. O-O {[%emt 0:00:52]} Ne7 {[%emt 0:01:04]} 12. Nh4 {[%emt 0:04:59]} f5 {[%emt 0:04:33]} 13. c3 {[%emt 0:04:22]} Ndc6 {[%emt 0:02:24]} 14. e5 {[%emt 0:00:59]} dxe5 {[%emt 0:08:33]} 15. Bxc5 {[%emt 0:04:13]} Ba6 {[%emt 0:02:10]} 16. fxe5 {[%emt 0:17:33]} Qxd3 {[%emt 0:05:06]} 17. Qf2 {[%emt 0:01:00]} Qd7 {[%emt 0:06:56]} 18. Re1 {[%emt 0:00:39]} Nxe5 {[%emt 0:10:39]} 19. Qf4 {[%emt 0:04:15]} Nd5 {[%emt 0:08:55]} 20. Bxd5 {[%emt 0:12:25]} Qxd5 {[%emt 0:01:32]} 21. Bd4 {[%emt 0:03:52]} g5 {[%emt 0:12:28]} 22. Rxe5 {[%emt 0:06:12]} gxf4 {[%emt 0:04:40]} 23. Rxd5 {[%emt 0:00:11]} exd5 {[%emt 0:00:18]} 24. Bxg7 {[%emt 0:00:24]} Rg8 {[%emt 0:00:46]} 25. Be5 {[%emt 0:00:16]} Rb7 {[%emt 0:04:22]} 26. Bxf4 {[%emt 0:00:02]} bxc3 {[%emt 0:01:11]} 27. bxc3 {[%emt 0:01:04]} Bd3 {[%emt 0:04:44]} 28. Ne3 {[%emt 0:00:36]} Rf8 {[%emt 0:04:24]} 29. Nxd5 {[%emt 0:00:41]} Kd7 {[%emt 0:01:14]} 30. Re1 {[%emt 0:00:54]} Rb1 {[%emt 0:00:47]} 31. Rxb1 {[%emt 0:06:45]} Bxb1 {[%emt 0:00:02]} 32. a3 {[%emt 0:00:21]} Kc6 {[%emt 0:02:17]} 33. Ne3 {[%emt 0:01:51]} Kd7 {[%emt 0:03:43]} 34. Nf3 {[%emt 0:00:40]} Rc8 {[%emt 0:00:49]} 35. c4 {[%emt 0:03:59]} h5 {[%emt 0:00:23]} 36. Nd4 {[%emt 0:01:03]} Bd3 {[%emt 0:01:04]} 37. Nf3 {[%emt 0:05:00]} Ke6 {[%emt 0:00:56]} 38. Ne5 {[%emt 0:00:17]} Be4 {[%emt 0:00:34]} 39. h4 {[%emt 0:00:50]} Rb8 {[%emt 0:00:27]} 40. Kf2 {[%emt 0:06:25]} Rb2+ {[%emt 0:00:33]} 41. Ke1 {[%emt 0:30:27]} Rb3 {[%emt 0:31:11]} 42. Kd2 {[%emt 0:02:08]} Rxa3 {[%emt 0:02:08]} 43. c5 {[%emt 0:01:16]} Ra5 {[%emt 0:00:00]} 44. c6 {[%emt 0:00:00]} Rxe5 {[%emt 0:00:00]} 45. Bxe5 {[%emt 0:00:00]} Kxe5 {[%emt 0:00:00]} 46. c7 {[%emt 0:00:00]} Bb7 {[%emt 0:00:00]} 47. Nc4+ {[%emt 0:00:00]} Kd5 {[%emt 0:00:00]} 48. Na5 {[%emt 0:00:00]} Bc8 {[%emt 0:00:00]} 49. Ke3 {[%emt 0:00:00]} Kd6 {[%emt 0:00:00]} 50. Kf4 {[%emt 0:00:00]} Kxc7 {[%emt 0:00:00]} 51. Kg5 {[%emt 0:00:00]} Kb6 {[%emt 0:00:00]} 52. Kxh5 {[%emt 0:00:00]} Kxa5 {[%emt 0:00:00]} 53. Kg5 {[%emt 0:00:00]} Kb4 {[%emt 0:00:00]} 54. h5 {[%emt 0:00:00]} Be6 {[%emt 0:00:00]} 55. Kf6 {[%emt 0:00:00]} f4 {[%emt 0:00:00]} 56. gxf4 {[%emt 0:00:00]} Bg8 {[%emt 0:00:00]} 57. Kg7 {[%emt 0:00:00]} Be6 {[%emt 0:00:00]} 58. Kg6 {[%emt 0:00:00]} a5 {[%emt 0:00:00]} 59. h6 {[%emt 0:01:07]} Bg8 {[%emt 0:00:00]} 60. Kg7 {[%emt 0:00:23]} a4 {[%emt 0:00:00]} 61. Kxg8 {[%emt 0:00:31]} a3 {[%emt 0:00:00]} 62. h7 {[%emt 0:00:07]} 1-0

[Event "Seniors-LEM-50 Sachsen-Anhalt 2024"]
[Site "Magdeburg"]
[Date "2024.07.04"]
[Round "4.2"]
[White "Korte, Markus"]
[Black "Hansch, Torsten"]
[Result "1/2-1/2"]
[ECO "B50"]
[WhiteElo "1895"]
[BlackElo "2047"]
[Annotator "RC"]
[PlyCount "28"]
[EventDate "2024.06.25"]
[EventType "swiss"]
[EventCountry "GER"]
[SourceTitle "playchess.com"]
[Source "ChessBase"]
[SourceQuality "1"]
[TimeControl "40/5400+30:1800+30"]

1. e4 {[%emt 0:00:04]} c5 {[%emt 0:00:06]} 2. Nf3 {[%emt 0:00:16]} d6 {[%emt 0:00:09]} 3. c3 {[%emt 0:00:08]} Nf6 {[%emt 0:00:24]} 4. h3 {[%emt 0:00:07]} Nc6 {[%emt 0:00:25]} 5. Bd3 {[%emt 0:00:10]} e5 {[%emt 0:00:20]} 6. O-O {[%emt 0:00:07]} g6 {[%emt 0:00:19]} 7. Bc2 {[%emt 0:00:50]} Bg7 {[%emt 0:00:17]} 8. d4 {[%emt 0:00:42]} cxd4 {[%emt 0:00:14]} 9. cxd4 {[%emt 0:00:10]} exd4 {[%emt 0:00:10]} 10. Nxd4 {[%emt 0:01:41]} O-O {[%emt 0:00:12]} 11. Nxc6 {[%emt 0:05:11]} bxc6 {[%emt 0:00:03]} 12. Nc3 {[%emt 0:01:29]} d5 {[%emt 0:00:43]} 13. exd5 {[%emt 0:01:51]} Nxd5 {[%emt 0:00:35]} 14. Qf3 {[%emt 0:02:51]} Nxc3 {[%emt 0:01:37]} 1/2-1/2

[Event "Seniors-LEM-50 Sachsen-Anhalt 2024"]
[Site "Magdeburg"]
[Date "2024.07.04"]
[Round "4.3"]
[White "Dannhauer, Frank"]
[Black "Puschendorf, Steffen"]
[Result "1/2-1/2"]
[ECO "C01"]
[WhiteElo "1921"]
[BlackElo "2067"]
[Annotator "NA RC"]
[PlyCount "31"]
[EventDate "2024.06.25"]
[EventType "swiss"]
[EventCountry "GER"]
[SourceTitle "playchess.com"]
[Source "ChessBase"]
[SourceQuality "1"]
[TimeControl "40/5400+30:1800+30"]

1. e4 {[%emt 0:00:07]} e6 {[%emt 0:00:04]} 2. d4 {[%emt 0:00:08]} d5 {[%emt 0:00:01]} 3. exd5 {[%emt 0:00:09]} exd5 {[%emt 0:00:04]} 4. Nf3 {[%emt 0:00:32]} Nf6 {[%emt 0:02:30]} 5. c4 {[%emt 0:06:07]} Bb4+ {[%emt 0:03:10]} 6. Bd2 {[%emt 0:00:40]} Qe7+ {[%emt 0:04:49]} 7. Qe2 {[%emt 0:04:39]} Bxd2+ $15 {[%emt 0:03:07]} 8. Nbxd2 {[%emt 0:03:49]} Be6 {[%emt 0:04:22]} 9. Ng5 {[%emt 0:12:12]} Nc6 {[%emt 0:05:37]} 10. Nxe6 {[%emt 0:01:03]} fxe6 {[%emt 0:00:10]} 11. Nf3 {[%emt 0:13:22]} Qb4+ {[%emt 0:04:58]} 12. Qd2 {[%emt 0:00:18]} Qxd2+ {[%emt 0:23:38]} 13. Kxd2 {[%emt 0:01:25]} O-O-O {[%emt 0:09:40]} 14. c5 {[%emt 0:05:52]} a6 {[%emt 0:01:35]} 15. Bd3 {[%emt 0:05:18]} Rde8 {[%emt 0:14:44]} 16. Rhe1 {[%emt 0:07:48]} 1/2-1/2

[Event "Seniors-LEM-50 Sachsen-Anhalt 2024"]
[Site "Magdeburg"]
[Date "2024.07.04"]
[Round "4.4"]
[White "Fabregas, Oliver"]
[Black "Hoffmann, Uwe"]
[Result "0-1"]
[ECO "A90"]
[WhiteElo "1876"]
[BlackElo "2013"]
[Annotator "NA RC"]
[PlyCount "74"]
[EventDate "2024.06.25"]
[EventType "swiss"]
[EventCountry "GER"]
[SourceTitle "playchess.com"]
[Source "ChessBase"]
[SourceQuality "1"]
[TimeControl "40/5400+30:1800+30"]

1. Nf3 {[%emt 0:00:01]} d5 {[%emt 0:02:02]} 2. g3 {[%emt 0:00:11]} e6 {[%emt 0:00:23]} 3. Bg2 {[%emt 0:00:13]} f5 {[%emt 0:00:24]} 4. d4 {[%emt 0:00:06]} Nf6 {[%emt 0:00:19]} 5. O-O {[%emt 0:00:09]} Bd6 {[%emt 0:00:07]} 6. b3 {[%emt 0:01:14]} Qe7 {[%emt 0:01:07]} 7. Bb2 {[%emt 0:00:13]} O-O {[%emt 0:00:40]} 8. c4 $11 {[%emt 0:00:37]} c6 {[%emt 0:01:22]} 9. Nc3 {[%emt 0:00:27]} b6 {[%emt 0:01:01]} 10. Qc2 {[%emt 0:04:13]} Ne4 {[%emt 0:00:33]} 11. cxd5 {[%emt 0:09:42]} exd5 {[%emt 0:04:43]} 12. e3 {[%emt 0:00:38]} Bb7 {[%emt 0:01:22]} 13. Rfd1 {[%emt 0:03:28]} Nd7 {[%emt 0:01:58]} 14. Rac1 {[%emt 0:04:14]} Rac8 {[%emt 0:01:59]} 15. Qe2 {[%emt 0:06:29]} Qe8 {[%emt 0:10:04]} 16. Rc2 {[%emt 0:04:52]} Qh5 {[%emt 0:03:32]} 17. Ne1 {[%emt 0:03:55]} Qf7 {[%emt 0:01:25]} 18. Rdc1 {[%emt 0:02:22]} Rce8 {[%emt 0:04:17]} 19. Qd1 {[%emt 0:05:00]} Ndf6 {[%emt 0:02:33]} 20. Nd3 {[%emt 0:14:42]} g5 {[%emt 0:03:56]} 21. Ne2 {[%emt 0:02:16]} Ng4 {[%emt 0:06:00]} 22. h3 {[%emt 0:03:58]} Nexf2 {[%emt 0:01:43]} 23. Nxf2 {[%emt 0:00:53]} Nxe3 {[%emt 0:00:20]} 24. Qd3 {[%emt 0:00:25]} Nxc2 {[%emt 0:00:28]} 25. Rxc2 {[%emt 0:00:15]} f4 {[%emt 0:01:26]} 26. gxf4 {[%emt 0:01:35]} gxf4 {[%emt 0:01:12]} 27. Ng4 {[%emt 0:00:33]} Kh8 {[%emt 0:03:18]} 28. Bf3 {[%emt 0:03:59]} Re3 {[%emt 0:12:23]} 29. Nxe3 {[%emt 0:00:16]} fxe3 {[%emt 0:00:02]} 30. Bg2 {[%emt 0:03:55]} Qf2+ {[%emt 0:01:00]} 31. Kh1 {[%emt 0:00:01]} Ba6 {[%emt 0:08:45]} 32. Qd1 {[%emt 0:21:58]} Rf3 {[%emt 0:07:04]} 33. Nf4 {[%emt 0:02:11]} e2 {[%emt 0:00:10]} 34. Rxe2 {[%emt 0:00:50]} Bxe2 {[%emt 0:00:08]} 35. Qxe2 {[%emt 0:00:09]} Rxf4 {[%emt 0:00:42]} 36. Qe8+ {[%emt 0:01:03]} Rf8 {[%emt 0:00:37]} 37. Qxc6 {[%emt 0:00:43]} Qe1+ {[%emt 0:19:55]} 0-1

[Event "Seniors-LEM-50 Sachsen-Anhalt 2024"]
[Site "Magdeburg"]
[Date "2024.07.04"]
[Round "4.5"]
[White "Ackermann, Robert"]
[Black "Schiller, Dirk"]
[Result "1-0"]
[ECO "C50"]
[WhiteElo "2041"]
[BlackElo "1885"]
[Annotator "NA RC"]
[PlyCount "41"]
[EventDate "2024.06.25"]
[EventType "swiss"]
[EventCountry "GER"]
[SourceTitle "playchess.com"]
[Source "ChessBase"]
[SourceQuality "1"]
[TimeControl "40/5400+30:1800+30"]

1. e4 {[%emt 0:00:10]} e5 {[%emt 0:00:15]} 2. Nf3 {[%emt 0:00:20]} Nc6 {[%emt 0:00:28]} 3. Bc4 {[%emt 0:00:21]} d6 {[%emt 0:00:54]} 4. h3 {[%emt 0:01:22]} Be7 {[%emt 0:00:56]} 5. d4 {[%emt 0:01:36]} exd4 {[%emt 0:02:02]} 6. Nxd4 {[%emt 0:00:17]} Nxd4 {[%emt 0:04:57]} 7. Qxd4 {[%emt 0:00:40]} Nf6 {[%emt 0:00:36]} 8. Nc3 {[%emt 0:00:23]} O-O {[%emt 0:00:51]} 9. O-O {[%emt 0:00:49]} c6 {[%emt 0:03:20]} 10. a4 {[%emt 0:00:54]} Qc7 {[%emt 0:00:34]} 11. Bf4 {[%emt 0:00:48]} Nd7 {[%emt 0:02:43]} 12. Bb3 {[%emt 0:01:35]} Ne5 {[%emt 0:00:28]} 13. Rad1 {[%emt 0:00:47]} Be6 {[%emt 0:04:03]} 14. Bg3 {[%emt 0:03:38]} Bxb3 {[%emt 0:01:36]} 15. cxb3 {[%emt 0:00:11]} f6 $14 {[%emt 0:00:22]} 16. Bxe5 {[%emt 0:10:53]} dxe5 {[%emt 0:01:44]} 17. Qc4+ {[%emt 0:00:33]} Rf7 {[%emt 0:08:40]} 18. Nd5 {[%emt 0:01:51]} Qd6 {[%emt 0:00:07]} 19. Nb6 {[%emt 0:01:25]} Qb8 {[%emt 0:01:34]} 20. Nxa8 {[%emt 0:00:19]} Qxa8 {[%emt 0:00:04]} 21. Rd7 {[%emt 0:00:15]} 1-0

[Event "Seniors-LEM-50 Sachsen-Anhalt 2024"]
[Site "Magdeburg"]
[Date "2024.07.04"]
[Round "4.7"]
[White "Schroeder, Frank"]
[Black "Weitz, Andreas"]
[Result "1/2-1/2"]
[ECO "D04"]
[WhiteElo "1942"]
[BlackElo "1936"]
[Annotator "RC"]
[PlyCount "52"]
[EventDate "2024.06.25"]
[EventType "swiss"]
[EventCountry "GER"]
[SourceTitle "playchess.com"]
[Source "ChessBase"]
[SourceQuality "1"]
[TimeControl "40/5400+30:1800+30"]

1. d4 {[%emt 1:31:00]} d5 {[%emt 0:00:16]} 2. Nf3 {[%emt 0:00:00]} Nf6 {[%emt 0:00:46]} 3. e3 {[%emt 0:00:00]} c6 {[%emt 0:01:02]} 4. Bd3 {[%emt 0:00:00]} Bg4 {[%emt 0:00:35]} 5. Nbd2 {[%emt 0:00:00]} Nbd7 {[%emt 0:00:52]} 6. b3 {[%emt 0:00:00]} e5 {[%emt 0:01:58]} 7. dxe5 {[%emt 0:00:00]} Nxe5 {[%emt 0:00:06]} 8. Be2 {[%emt 0:00:00]} Nxf3+ {[%emt 0:00:12]} 9. Bxf3 {[%emt 0:00:00]} Bxf3 {[%emt 0:00:54]} 10. Qxf3 {[%emt 0:00:00]} Bb4 {[%emt 0:01:16]} 11. O-O {[%emt 0:00:00]} O-O {[%emt 0:01:53]} 12. Rd1 {[%emt 0:00:00]} Bc3 {[%emt 0:01:52]} 13. Rb1 {[%emt 0:00:00]} Qe7 {[%emt 0:00:13]} 14. a4 {[%emt 0:00:00]} a5 {[%emt 0:00:43]} 15. Bb2 {[%emt 0:00:00]} Bxb2 {[%emt 0:00:51]} 16. Rxb2 {[%emt 0:00:00]} Rad8 {[%emt 0:01:32]} 17. Rbb1 {[%emt 0:00:00]} h6 {[%emt 0:06:12]} 18. h3 {[%emt 0:00:00]} Rd7 {[%emt 0:00:53]} 19. Re1 {[%emt 0:00:00]} Qb4 {[%emt 0:01:08]} 20. Rbd1 {[%emt 0:00:00]} Qc3 {[%emt 0:00:59]} 21. Qf5 {[%emt 0:00:00]} Rfd8 {[%emt 0:01:06]} 22. Qd3 {[%emt 0:00:00]} Qe5 {[%emt 0:00:57]} 23. Nf3 {[%emt 0:00:00]} Qe4 {[%emt 0:03:27]} 24. Qxe4 {[%emt 0:00:00]} dxe4 {[%emt 0:01:06]} 25. Rxd7 {[%emt 0:00:00]} Rxd7 {[%emt 0:00:08]} 26. Ne5 {[%emt 0:00:00]} Rd5 {[%emt 0:01:18]} 1/2-1/2

[Event "Seniors-LEM-50 Sachsen-Anhalt 2024"]
[Site "Magdeburg"]
[Date "2024.07.04"]
[Round "4.8"]
[White "Kottke, Steffen"]
[Black "Hencke, Heiko"]
[Result "1-0"]
[ECO "B21"]
[WhiteElo "1933"]
[BlackElo "1855"]
[Annotator "NA"]
[PlyCount "49"]
[EventDate "2024.06.25"]
[EventType "swiss"]
[EventCountry "GER"]
[SourceTitle "playchess.com"]
[Source "ChessBase"]
[SourceQuality "1"]
[TimeControl "40/5400+30:1800+30"]

1. e4 {[%emt 0:00:47]} c5 {[%emt 0:00:12]} 2. d4 {[%emt 0:00:10]} cxd4 {[%emt 0:00:23]} 3. c3 {[%emt 0:00:06]} dxc3 {[%emt 0:00:28]} 4. Nxc3 {[%emt 0:00:06]} Nc6 {[%emt 0:00:29]} 5. Nf3 {[%emt 0:00:27]} Nf6 {[%emt 0:01:06]} 6. Bc4 {[%emt 0:00:31]} e6 {[%emt 0:00:57]} 7. O-O {[%emt 0:00:39] B21: Sicilian: 2 f4 and Morra Gambit.} Be7 {[%emt 0:00:31]} 8. Qe2 {[%emt 0:00:38]} O-O {[%emt 0:00:56]} 9. Rd1 {[%emt 0:00:30]} b6 {[%emt 0:04:09]} 10. Bf4 {[%emt 0:03:33]} Nh5 {[%emt 0:02:42]} 11. Be3 {[%emt 0:03:54]} Bb7 {[%emt 0:01:26]} 12. Rac1 {[%emt 0:02:46]} Nf6 {[%emt 0:03:18]} 13. a3 {[%emt 0:06:14]} a6 {[%emt 0:02:08]} (13... Qb8 $15) 14. Ba2 {[%emt 0:06:16]} b5 {[%emt 0:11:52]} 15. e5 {[%emt 0:06:39]} Ne8 {[%emt 0:04:08]} 16. Bb1 {[%emt 0:01:24]} g6 {[%emt 0:01:49]} 17. Ne4 {[%emt 0:04:17]} Nxe5 {[%emt 0:09:07]} 18. Nxe5 {[%emt 0:00:19]} d5 {[%emt 0:00:58]} 19. Nc5 $18 {[%emt 0:13:16]} Nd6 {[%emt 0:06:12]} 20. Nxb7 {[%emt 0:00:56]} Nxb7 {[%emt 0:00:29]} 21. Nc6 {[%emt 0:01:16]} Qd7 {[%emt 0:00:13]} 22. Bh6 {[%emt 0:04:11]} Rfc8 {[%emt 0:00:43]} 23. Rxd5 {[%emt 0:04:57]} exd5 {[%emt 0:03:02]} 24. Nxe7+ {[%emt 0:01:45]} Kh8 {[%emt 0:00:15]} 25. Qe5+ {[%emt 0:00:09]} 1-0

[Event "Seniors-LEM-50 Sachsen-Anhalt 2024"]
[Site "Magdeburg"]
[Date "2024.07.04"]
[Round "4.9"]
[White "Leib, Britta"]
[Black "Ahrens, Gunnar"]
[Result "0-1"]
[ECO "B01"]
[WhiteElo "1920"]
[BlackElo "1750"]
[Annotator "NA RC"]
[PlyCount "24"]
[EventDate "2024.06.25"]
[EventType "swiss"]
[EventCountry "GER"]
[SourceTitle "playchess.com"]
[Source "ChessBase"]
[SourceQuality "1"]
[TimeControl "40/5400+30:1800+30"]

1. e4 {[%emt 0:00:05]} Nc6 {[%emt 0:00:05]} 2. d4 {[%emt 0:01:49]} d5 {[%emt 0:00:06]} 3. exd5 {[%emt 0:10:08]} Qxd5 {[%emt 0:00:35]} 4. Nf3 {[%emt 0:00:08]} e5 {[%emt 0:03:12]} 5. c3 {[%emt 0:17:37]} Bg4 {[%emt 0:03:24]} 6. Be2 {[%emt 0:02:26]} exd4 {[%emt 0:12:23]} 7. Nxd4 {[%emt 0:02:12]} Nxd4 {[%emt 0:02:45]} 8. Bxg4 {[%emt 0:21:46]} Qxg2 {[%emt 0:06:43]} 9. Rf1 {[%emt 0:04:52]} Qe4+ {[%emt 0:02:23]} 10. Be3 {[%emt 0:05:22]} Nc2+ {[%emt 0:01:05]} 11. Ke2 $19 {[%emt 0:00:48]} Qxg4+ {[%emt 0:04:03]} 12. f3 {[%emt 0:01:55]} Qc4+ {[%emt 0:00:36]} 0-1

[Event "Seniors-LEM-50 Sachsen-Anhalt 2024"]
[Site "Magdeburg"]
[Date "2024.07.04"]
[Round "4.10"]
[White "Bachmann, Sylvia"]
[Black "Wirp, Hans-Werner"]
[Result "0-1"]
[ECO "C55"]
[WhiteElo "1768"]
[BlackElo "1841"]
[Annotator "NA RC"]
[PlyCount "76"]
[EventDate "2024.06.25"]
[EventType "swiss"]
[EventCountry "GER"]
[SourceTitle "playchess.com"]
[Source "ChessBase"]
[SourceQuality "1"]
[TimeControl "40/5400+30:1800+30"]

1. e4 {[%emt 1:31:00]} e5 {[%emt 1:31:00]} 2. Nf3 {[%emt 0:00:30]} Nc6 {[%emt 0:00:30]} 3. Bc4 {[%emt 0:00:30]} Nf6 {[%emt 0:00:30]} 4. d3 {[%emt 0:00:30]} Be7 {[%emt 0:00:30]} 5. c3 {[%emt 0:00:30]} O-O {[%emt 0:00:30]} 6. O-O {[%emt 0:00:30]} d6 {[%emt 0:00:30]} 7. h3 {[%emt 0:00:30]} Na5 {[%emt 0:00:30]} 8. Bb5 {[%emt 0:00:30]} a6 {[%emt 0:00:30]} 9. Ba4 {[%emt 0:00:30]} b5 {[%emt 0:00:30]} 10. Bc2 {[%emt 0:00:30]} c5 {[%emt 0:00:30]} 11. a4 {[%emt 0:00:30]} Bb7 {[%emt 0:00:30]} 12. Be3 {[%emt 0:00:30]} b4 $11 {[%emt 0:00:30]} 13. c4 {[%emt 0:00:30]} Nc6 {[%emt 0:00:30]} 14. Nbd2 {[%emt 0:00:30]} Ne8 {[%emt 0:00:30]} 15. Nh2 {[%emt 0:00:30]} Bc8 {[%emt 0:00:30]} 16. f4 {[%emt 0:00:30]} exf4 {[%emt 0:00:30]} 17. Bxf4 {[%emt 0:00:30]} Bf6 {[%emt 0:00:30]} 18. Rb1 {[%emt 0:00:30]} Bd4+ {[%emt 0:00:30]} 19. Kh1 {[%emt 0:00:30]} f5 {[%emt 0:00:30]} 20. Qe2 {[%emt 0:00:30]} g5 {[%emt 0:00:30]} 21. Be3 {[%emt 0:00:30]} f4 {[%emt 0:00:30]} 22. Bg1 {[%emt 0:00:30]} Ng7 {[%emt 0:00:30]} 23. Nb3 {[%emt 0:00:30]} Be5 {[%emt 0:00:30]} 24. Nf3 {[%emt 0:00:30]} Qf6 {[%emt 0:00:30]} 25. Bd1 {[%emt 0:00:30]} Qh6 {[%emt 0:00:30]} 26. Bh2 {[%emt 0:00:30]} g4 {[%emt 0:00:30]} 27. Nxe5 {[%emt 0:00:30]} Nxe5 {[%emt 0:00:30]} 28. d4 {[%emt 0:00:30]} cxd4 {[%emt 0:00:30]} 29. Nxd4 {[%emt 0:00:30]} g3 {[%emt 0:00:30]} 30. Bb3 {[%emt 0:00:30]} Kh8 {[%emt 0:00:30]} 31. Rbd1 {[%emt 0:00:30]} Bg4 {[%emt 0:00:30]} 32. Qd2 {[%emt 0:00:30]} Bxd1 {[%emt 0:00:30]} 33. Bxd1 {[%emt 0:00:30]} gxh2 {[%emt 0:00:30]} 34. Nf5 {[%emt 0:00:30]} Nxf5 {[%emt 0:00:30]} 35. exf5 {[%emt 0:00:30]} Rxf5 {[%emt 0:00:30]} 36. Qd5 {[%emt 0:00:30]} Raf8 {[%emt 0:00:30]} 37. Bc2 {[%emt 0:00:30]} R5f6 {[%emt 0:00:30]} 38. c5 {[%emt 0:00:30]} f3 {[%emt 0:00:30]} 0-1

[Event "Seniors-LEM-50 Sachsen-Anhalt 2024"]
[Site "Magdeburg"]
[Date "2024.07.04"]
[Round "4.11"]
[White "Janeke, Thomas"]
[Black "Giesenberg, Angela"]
[Result "1-0"]
[ECO "E67"]
[WhiteElo "1764"]
[BlackElo "1827"]
[Annotator "NA RC"]
[PlyCount "117"]
[EventDate "2024.06.25"]
[EventType "swiss"]
[EventCountry "GER"]
[SourceTitle "playchess.com"]
[Source "ChessBase"]
[SourceQuality "1"]
[TimeControl "40/5400+30:1800+30"]

1. c4 {[%emt 0:00:03]} d6 {[%emt 0:00:09]} 2. Nc3 {[%emt 0:00:36]} g6 {[%emt 0:00:43]} 3. Nf3 {[%emt 0:00:26]} Bg7 {[%emt 0:00:08]} 4. g3 {[%emt 0:00:50]} Nf6 {[%emt 0:00:19]} 5. Bg2 {[%emt 0:00:14]} e5 {[%emt 0:01:21]} 6. d4 {[%emt 0:02:10]} Nbd7 {[%emt 0:02:11]} 7. O-O {[%emt 0:01:09]} O-O {[%emt 0:00:14]} 8. dxe5 {[%emt 0:00:50]} dxe5 {[%emt 0:02:36]} 9. Qc2 {[%emt 0:02:26]} c6 {[%emt 0:01:05]} 10. Rd1 {[%emt 0:00:19]} Qe7 {[%emt 0:01:46]} 11. e4 {[%emt 0:01:15]} a5 {[%emt 0:00:36]} 12. Bg5 {[%emt 0:01:02]} h6 {[%emt 0:00:34]} 13. Bd2 {[%emt 0:05:39]} Nc5 {[%emt 0:02:22]} 14. h3 {[%emt 0:00:34]} Ne8 {[%emt 0:05:26]} 15. Be3 {[%emt 0:01:33]} Be6 {[%emt 0:05:22]} 16. b3 {[%emt 0:01:22]} Nc7 {[%emt 0:09:51]} 17. Ne1 {[%emt 0:01:43]} f5 {[%emt 0:03:12]} 18. Nd3 {[%emt 0:04:07]} Nxd3 {[%emt 0:03:55]} 19. Rxd3 {[%emt 0:01:46]} f4 {[%emt 0:02:27]} 20. Bb6 {[%emt 0:01:24]} Na6 {[%emt 0:10:48]} 21. Qd2 {[%emt 0:05:55]} fxg3 {[%emt 0:14:46]} 22. fxg3 {[%emt 0:00:59]} Qb4 {[%emt 0:07:59]} 23. Na4 {[%emt 0:03:47]} Qxd2 {[%emt 0:00:57]} 24. Rxd2 {[%emt 0:00:47]} Bf6 {[%emt 0:05:36]} 25. Rad1 {[%emt 0:00:39]} Be7 {[%emt 0:01:52]} 26. Bxa5 {[%emt 0:01:04]} b5 {[%emt 0:06:41]} 27. cxb5 {[%emt 0:01:44]} cxb5 {[%emt 0:00:05]} 28. Nb6 {[%emt 0:02:12]} Ra7 {[%emt 0:04:30]} 29. Nd7 {[%emt 0:03:01]} Bxd7 {[%emt 0:01:21]} 30. Rxd7 {[%emt 0:00:08]} Bc5+ {[%emt 0:00:22]} 31. Kh2 {[%emt 0:00:30]} Rxd7 {[%emt 0:02:19]} 32. Rxd7 {[%emt 0:00:12]} Nb4 {[%emt 0:01:58]} 33. a4 {[%emt 0:11:23]} bxa4 {[%emt 0:00:29]} 34. bxa4 {[%emt 0:00:16]} Na2 {[%emt 0:01:06]} 35. Rd2 {[%emt 0:03:06]} Ra8 {[%emt 0:00:49]} 36. Rd8+ {[%emt 0:01:16]} Rxd8 {[%emt 0:00:11]} 37. Bxd8 {[%emt 0:00:05]} Nc3 {[%emt 0:00:14]} 38. a5 {[%emt 0:00:21]} Nb5 {[%emt 0:00:17]} 39. Bf1 {[%emt 0:00:39]} Na7 {[%emt 0:00:13]} 40. Bb6 {[%emt 0:01:57]} Bxb6 {[%emt 0:00:33]} 41. axb6 {[%emt 0:30:10]} Nc6 {[%emt 0:30:11]} 42. b7 {[%emt 0:00:23]} Kf7 {[%emt 0:01:16]} 43. Bb5 {[%emt 0:01:34]} Nb8 {[%emt 0:00:00]} 44. Kg2 {[%emt 0:00:00]} g5 {[%emt 0:00:00]} 45. Kf3 {[%emt 0:00:00]} h5 {[%emt 0:00:00]} 46. g4 {[%emt 0:00:00]} h4 {[%emt 0:00:00]} 47. Ke3 {[%emt 0:00:00]} Ke7 {[%emt 0:00:00]} 48. Kd3 {[%emt 0:00:00]} Ke6 {[%emt 0:00:00]} 49. Kc4 {[%emt 0:00:00]} Kd6 {[%emt 0:00:00]} 50. Kb4 {[%emt 0:00:00]} Kc7 {[%emt 0:00:00]} 51. Kc5 {[%emt 0:00:00]} Kxb7 {[%emt 0:00:41]} 52. Kd6 {[%emt 0:00:00]} Kb6 {[%emt 0:00:16]} 53. Bc4 {[%emt 0:00:00]} Nc6 {[%emt 0:01:09]} 54. Bd5 {[%emt 0:00:00]} Nb4 {[%emt 0:00:35]} 55. Kxe5 {[%emt 0:00:00]} Nd3+ {[%emt 0:00:13]} 56. Kf5 {[%emt 0:00:00]} Nf4 {[%emt 0:02:22]} 57. Kxg5 {[%emt 0:00:00]} Nxh3+ {[%emt 0:00:27]} 58. Kxh4 {[%emt 0:00:00]} Nf2 {[%emt 0:00:29]} 59. g5 {[%emt 0:48:24]} 1-0